[Event "Titled Tuesday Blitz June 6 Early 2023"]
[White "Rian, Kapriaga"]
[Black "Sanhueza, Cristian"]
[WhiteFideId "7103263"]
[BlackFideId "116815"]
[WhiteElo "2331"]
[BlackElo "2174"]
[Result "0-1"]
[Round "9"]
[TimeControl "180+2"]
[Date "2023.06.06"]
[WhiteClock "0:00:41"]
[BlackClock "0:01:56"]
[Board "112"]

1. d4 {[%clk 0:02:53]}  Nf6 {[%clk 0:02:59]} 2. c4 {[%clk 0:02:52]}  g6 {[%clk 0:02:59]} 3. Nc3 {[%clk 0:02:51]}  Bg7 {[%clk 0:03:00]} 4. e4 {[%clk 0:02:50]}  d6 {[%clk 0:03:01]} 5. Bd3 {[%clk 0:02:50]}  O-O {[%clk 0:03:02]} 6. Nge2 {[%clk 0:02:49]}  Nc6 {[%clk 0:03:01]} 7. O-O {[%clk 0:02:44]}  Nh5 {[%clk 0:03:01]} 8. d5 {[%clk 0:02:23]}  Ne5 {[%clk 0:02:54]} 9. Ng3 {[%clk 0:02:11]}  Nxg3 {[%clk 0:02:48]} 10. hxg3 {[%clk 0:02:09]}  Nxd3 {[%clk 0:02:46]} 11. Qxd3 {[%clk 0:02:07]}  e5 {[%clk 0:02:46]} 12. Be3 {[%clk 0:01:55]}  f5 {[%clk 0:02:46]} 13. exf5 {[%clk 0:01:54]}  gxf5 {[%clk 0:02:41]} 14. f4 {[%clk 0:01:53]}  e4 {[%clk 0:02:39]} 15. Qd2 {[%clk 0:01:52]}  Qf6 {[%clk 0:02:37]} 16. Rfd1 {[%clk 0:01:48]}  Qg6 {[%clk 0:02:34]} 17. Ne2 {[%clk 0:01:40]}  Bd7 {[%clk 0:02:34]} 18. Bd4 {[%clk 0:01:39]}  Rae8 {[%clk 0:02:31]} 19. Bxg7 {[%clk 0:01:38]}  Qxg7 {[%clk 0:02:32]} 20. Qc3 {[%clk 0:01:34]}  Qg4 {[%clk 0:02:30]} 21. Nd4 {[%clk 0:01:24]}  Rf7 {[%clk 0:02:23]} 22. Qe3 {[%clk 0:01:21]}  Rg7 {[%clk 0:02:22]} 23. Kf2 {[%clk 0:01:20]}  c5 {[%clk 0:02:12]} 24. Ne2 {[%clk 0:01:14]}  b5 {[%clk 0:02:08]} 25. b3 {[%clk 0:01:08]}  Rb8 {[%clk 0:02:05]} 26. Rab1 {[%clk 0:01:05]}  Be8 {[%clk 0:02:03]} 27. Rh1 {[%clk 0:01:03]}  bxc4 {[%clk 0:01:58]} 28. bxc4 {[%clk 0:01:01]}  Rgb7 {[%clk 0:01:58]} 29. Rxb7 {[%clk 0:00:54]}  Rxb7 {[%clk 0:01:59]} 30. Qc3 {[%clk 0:00:47]}  Qg7 {[%clk 0:01:57]} 31. Qf6 {[%clk 0:00:41]}  Qxf6 {[%clk 0:01:56]} 0-1


[Site "https://www.chess.com"]

[Event "Titled Tuesday Blitz June 6 Early 2023"]
[White "Womacka, Mathias"]
[Black "Ziatdinov, Raset"]
[WhiteFideId "4611390"]
[BlackFideId "2015323"]
[WhiteElo "2377"]
[BlackElo "2220"]
[Result "1/2-1/2"]
[Round "9"]
[TimeControl "180+2"]
[Date "2023.06.06"]
[WhiteClock "0:00:18"]
[BlackClock "0:00:16"]
[Board "113"]

1. e4 {[%clk 0:03:00]}  e6 {[%clk 0:02:58]} 2. d4 {[%clk 0:02:59]}  d5 {[%clk 0:02:59]} 3. Nd2 {[%clk 0:03:00]}  c5 {[%clk 0:02:58]} 4. exd5 {[%clk 0:03:00]}  Qxd5 {[%clk 0:02:59]} 5. Ngf3 {[%clk 0:03:00]}  cxd4 {[%clk 0:02:58]} 6. Bc4 {[%clk 0:03:00]}  Qd6 {[%clk 0:02:57]} 7. O-O {[%clk 0:03:00]}  Nf6 {[%clk 0:02:56]} 8. Nb3 {[%clk 0:02:59]}  Nc6 {[%clk 0:02:57]} 9. Nbxd4 {[%clk 0:03:00]}  Nxd4 {[%clk 0:02:57]} 10. Nxd4 {[%clk 0:03:01]}  Qc7 {[%clk 0:02:58]} 11. Bb3 {[%clk 0:02:51]}  a6 {[%clk 0:02:53]} 12. Qf3 {[%clk 0:02:44]}  Bd6 {[%clk 0:02:18]} 13. h3 {[%clk 0:02:40]}  O-O {[%clk 0:02:18]} 14. Bg5 {[%clk 0:02:40]}  Be5 {[%clk 0:02:09]} 15. Rad1 {[%clk 0:02:38]}  h6 {[%clk 0:02:01]} 16. Bc1 {[%clk 0:02:25]}  Bd7 {[%clk 0:01:53]} 17. c3 {[%clk 0:02:24]}  Rfd8 {[%clk 0:01:51]} 18. Rfe1 {[%clk 0:02:18]}  Nd5 {[%clk 0:01:42]} 19. Bxd5 {[%clk 0:01:24]}  exd5 {[%clk 0:01:30]} 20. Nf5 {[%clk 0:01:25]}  Bc6 {[%clk 0:01:12]} 21. Qg4 {[%clk 0:01:09]}  Kh8 {[%clk 0:01:08]} 22. Bf4 {[%clk 0:01:05]}  f6 {[%clk 0:00:57]} 23. Bxe5 {[%clk 0:00:46]}  fxe5 {[%clk 0:00:57]} 24. Nh4 {[%clk 0:00:46]}  Be8 {[%clk 0:00:53]} 25. Qe6 {[%clk 0:00:39]}  d4 {[%clk 0:00:41]} 26. Qxe5 {[%clk 0:00:32]}  Qxe5 {[%clk 0:00:30]} 27. Rxe5 {[%clk 0:00:33]}  dxc3 {[%clk 0:00:31]} 28. Rxd8 {[%clk 0:00:33]}  Rxd8 {[%clk 0:00:32]} 29. bxc3 {[%clk 0:00:33]}  Bc6 {[%clk 0:00:33]} 30. Nf5 {[%clk 0:00:30]}  Rd1+ {[%clk 0:00:31]} 31. Kh2 {[%clk 0:00:29]}  Rd2 {[%clk 0:00:30]} 32. Nd4 {[%clk 0:00:20]}  Rxf2 {[%clk 0:00:21]} 33. Nxc6 {[%clk 0:00:20]}  bxc6 {[%clk 0:00:22]} 34. Rc5 {[%clk 0:00:19]}  Rxa2 {[%clk 0:00:20]} 35. Rxc6 {[%clk 0:00:19]}  a5 {[%clk 0:00:21]} 36. c4 {[%clk 0:00:18]}  a4 {[%clk 0:00:22]} 37. c5 {[%clk 0:00:18]}  a3 {[%clk 0:00:23]} 38. Ra6 {[%clk 0:00:18]}  Rc2 {[%clk 0:00:16]} 1/2-1/2


[Site "https://www.chess.com"]

[Event "Titled Tuesday Blitz June 6 Early 2023"]
[White "Pavlidou, Ekaterini"]
[Black "Toktomushev, Teimur"]
[WhiteFideId "4213262"]
[BlackFideId "14176726"]
[WhiteElo "2126"]
[BlackElo "2116"]
[Result "1-0"]
[Round "9"]
[TimeControl "180+2"]
[Date "2023.06.06"]
[WhiteClock "0:00:09"]
[BlackClock "0:00:02"]
[Board "115"]

1. d4 {[%clk 0:02:59]}  d5 {[%clk 0:02:57]} 2. c4 {[%clk 0:02:57]}  e6 {[%clk 0:02:57]} 3. Nc3 {[%clk 0:02:53]}  Nf6 {[%clk 0:02:57]} 4. cxd5 {[%clk 0:02:52]}  exd5 {[%clk 0:02:58]} 5. Bg5 {[%clk 0:02:52]}  Be7 {[%clk 0:02:58]} 6. e3 {[%clk 0:02:53]}  c6 {[%clk 0:02:58]} 7. Bd3 {[%clk 0:02:53]}  Nbd7 {[%clk 0:02:57]} 8. Qc2 {[%clk 0:02:46]}  Nh5 {[%clk 0:02:57]} 9. Bxe7 {[%clk 0:02:45]}  Qxe7 {[%clk 0:02:58]} 10. Nf3 {[%clk 0:02:43]}  Nf4 {[%clk 0:02:58]} 11. Bf1 {[%clk 0:02:42]}  Nb6 {[%clk 0:02:26]} 12. O-O-O {[%clk 0:02:40]}  Ne6 {[%clk 0:02:15]} 13. Ne5 {[%clk 0:02:39]}  Bd7 {[%clk 0:02:06]} 14. f4 {[%clk 0:02:39]}  f6 {[%clk 0:01:59]} 15. Nd3 {[%clk 0:02:38]}  O-O-O {[%clk 0:01:57]} 16. h4 {[%clk 0:02:31]}  Kb8 {[%clk 0:01:57]} 17. f5 {[%clk 0:02:29]}  Nc7 {[%clk 0:01:53]} 18. Qf2 {[%clk 0:02:28]}  Rhe8 {[%clk 0:01:51]} 19. Re1 {[%clk 0:02:26]}  Bc8 {[%clk 0:01:40]} 20. Nc5 {[%clk 0:02:23]}  Nd7 {[%clk 0:01:33]} 21. e4 {[%clk 0:02:21]}  Nxc5 {[%clk 0:01:30]} 22. dxc5 {[%clk 0:02:20]}  d4 {[%clk 0:01:18]} 23. Na4 {[%clk 0:02:14]}  d3 {[%clk 0:01:09]} 24. Qd2 {[%clk 0:02:08]}  Bxf5 {[%clk 0:00:46]} 25. Bxd3 {[%clk 0:01:54]}  Bg6 {[%clk 0:00:46]} 26. Rh3 {[%clk 0:01:48]}  Ne6 {[%clk 0:00:45]} 27. Qf2 {[%clk 0:01:30]}  Rd4 {[%clk 0:00:42]} 28. Bc2 {[%clk 0:01:27]}  Red8 {[%clk 0:00:33]} 29. Rc3 {[%clk 0:01:24]}  Rb4 {[%clk 0:00:23]} 30. a3 {[%clk 0:01:03]}  Rbd4 {[%clk 0:00:19]} 31. g4 {[%clk 0:00:59]}  h5 {[%clk 0:00:15]} 32. gxh5 {[%clk 0:00:53]}  Bxh5 {[%clk 0:00:16]} 33. b4 {[%clk 0:00:41]}  Nc7 {[%clk 0:00:14]} 34. Qg3 {[%clk 0:00:36]}  Ka8 {[%clk 0:00:10]} 35. Nb2 {[%clk 0:00:34]}  Nb5 {[%clk 0:00:10]} 36. Rce3 {[%clk 0:00:31]}  a5 {[%clk 0:00:09]} 37. a4 {[%clk 0:00:30]}  Nc7 {[%clk 0:00:05]} 38. e5 {[%clk 0:00:21]}  f5 {[%clk 0:00:04]} 39. Qg5 {[%clk 0:00:18]}  Qxg5 {[%clk 0:00:03]} 40. hxg5 {[%clk 0:00:18]}  Rxb4 {[%clk 0:00:02]} 41. Bxf5 {[%clk 0:00:17]}  Rd5 {[%clk 0:00:02]} 42. e6 {[%clk 0:00:16]}  Rxc5+ {[%clk 0:00:02]} 43. Bc2 {[%clk 0:00:14]}  Bg6 {[%clk 0:00:02]} 44. R1e2 {[%clk 0:00:14]}  Rxc2+ {[%clk 0:00:01]} 45. Rxc2 {[%clk 0:00:15]}  Bxc2 {[%clk 0:00:02]} 46. Kxc2 {[%clk 0:00:15]}  Rd4 {[%clk 0:00:02]} 47. e7 {[%clk 0:00:15]}  Ne8 {[%clk 0:00:03]} 48. Nd3 {[%clk 0:00:14]}  Rd7 {[%clk 0:00:02]} 49. Nf4 {[%clk 0:00:13]}  Kb8 {[%clk 0:00:03]} 50. Ng6 {[%clk 0:00:11]}  Kc8 {[%clk 0:00:02]} 51. Nf8 {[%clk 0:00:11]}  Rd6 {[%clk 0:00:02]} 52. g6 {[%clk 0:00:11]}  Rf6 {[%clk 0:00:02]} 53. Rd3 {[%clk 0:00:10]}  Kc7 {[%clk 0:00:02]} 54. Rd8 {[%clk 0:00:10]}  Nd6 {[%clk 0:00:02]} 55. Rxd6 {[%clk 0:00:09]} 1-0


[Site "https://www.chess.com"]

[Event "Titled Tuesday Blitz June 6 Early 2023"]
[White "Vivas Zamora, Fabian Ernesto"]
[Black "Lakshmi C"]
[WhiteFideId "3902480"]
[BlackFideId "25035347"]
[WhiteElo "2244"]
[BlackElo "1942"]
[Result "1-0"]
[Round "9"]
[TimeControl "180+2"]
[Date "2023.06.06"]
[WhiteClock "0:00:23"]
[BlackClock "0:00:01"]
[Board "122"]

1. e4 {[%clk 0:03:00]}  c5 {[%clk 0:02:49]} 2. Nc3 {[%clk 0:02:57]}  Nc6 {[%clk 0:02:49]} 3. Bb5 {[%clk 0:02:54]}  g6 {[%clk 0:02:37]} 4. Bxc6 {[%clk 0:02:49]}  dxc6 {[%clk 0:02:30]} 5. d3 {[%clk 0:02:47]}  e5 {[%clk 0:02:27]} 6. Be3 {[%clk 0:02:43]}  Qe7 {[%clk 0:02:19]} 7. Qd2 {[%clk 0:02:27]}  Bg7 {[%clk 0:02:16]} 8. Nge2 {[%clk 0:02:18]}  Nf6 {[%clk 0:02:13]} 9. h3 {[%clk 0:02:06]}  Be6 {[%clk 0:01:28]} 10. b3 {[%clk 0:01:57]}  Nd7 {[%clk 0:01:14]} 11. O-O {[%clk 0:01:53]}  f5 {[%clk 0:01:09]} 12. f4 {[%clk 0:01:20]}  O-O {[%clk 0:01:04]} 13. Rae1 {[%clk 0:01:13]}  Rae8 {[%clk 0:00:48]} 14. Ng3 {[%clk 0:00:58]}  Qd6 {[%clk 0:00:34]} 15. exf5 {[%clk 0:00:56]}  gxf5 {[%clk 0:00:32]} 16. Kh2 {[%clk 0:00:42]}  Rf7 {[%clk 0:00:11]} 17. fxe5 {[%clk 0:00:25]}  Bxe5 {[%clk 0:00:10]} 18. Bf4 {[%clk 0:00:25]}  Ref8 {[%clk 0:00:04]} 19. Bxe5 {[%clk 0:00:23]}  Nxe5 {[%clk 0:00:03]} 20. Qf4 {[%clk 0:00:24]}  Qd5 {[%clk 0:00:01]} 21. Nxd5 {[%clk 0:00:23]} 1-0


[Site "https://www.chess.com"]

[Event "Titled Tuesday Blitz June 6 Early 2023"]
[White "Schuh, Karsten"]
[Black "Sanchez, Robert"]
[WhiteFideId "4637950"]
[BlackFideId "2034360"]
[WhiteElo "2177"]
[BlackElo "1823"]
[Result "1/2-1/2"]
[Round "9"]
[TimeControl "180+2"]
[Date "2023.06.06"]
[WhiteClock "0:00:16"]
[BlackClock "0:00:03"]
[Board "123"]

1. Nf3 {[%clk 0:03:00]}  Nf6 {[%clk 0:02:51]} 2. c4 {[%clk 0:03:00]}  g6 {[%clk 0:02:51]} 3. b4 {[%clk 0:03:00]}  d6 {[%clk 0:02:52]} 4. Bb2 {[%clk 0:03:00]}  Bg7 {[%clk 0:02:52]} 5. g3 {[%clk 0:03:00]}  O-O {[%clk 0:02:53]} 6. Bg2 {[%clk 0:03:01]}  Nbd7 {[%clk 0:02:54]} 7. O-O {[%clk 0:03:01]}  e5 {[%clk 0:02:54]} 8. d3 {[%clk 0:03:00]}  Re8 {[%clk 0:02:52]} 9. Nbd2 {[%clk 0:02:59]}  h6 {[%clk 0:02:51]} 10. Qc2 {[%clk 0:02:57]}  Nf8 {[%clk 0:02:47]} 11. c5 {[%clk 0:02:53]}  Nh5 {[%clk 0:02:37]} 12. Rac1 {[%clk 0:02:47]}  d5 {[%clk 0:02:36]} 13. b5 {[%clk 0:02:42]}  c6 {[%clk 0:02:35]} 14. a4 {[%clk 0:02:38]}  a6 {[%clk 0:02:29]} 15. bxc6 {[%clk 0:02:37]}  bxc6 {[%clk 0:02:30]} 16. e4 {[%clk 0:02:33]}  Rb8 {[%clk 0:02:27]} 17. Ba1 {[%clk 0:02:21]}  d4 {[%clk 0:02:23]} 18. Nc4 {[%clk 0:02:21]}  f5 {[%clk 0:01:56]} 19. Nd6 {[%clk 0:02:14]}  Re7 {[%clk 0:01:53]} 20. exf5 {[%clk 0:02:07]}  gxf5 {[%clk 0:01:47]} 21. Rfe1 {[%clk 0:02:06]}  Ng6 {[%clk 0:01:38]} 22. Qc4+ {[%clk 0:01:55]}  Be6 {[%clk 0:01:36]} 23. Qxa6 {[%clk 0:01:56]}  Qd7 {[%clk 0:01:17]} 24. Qa5 {[%clk 0:01:45]}  Rb3 {[%clk 0:01:09]} 25. Qd2 {[%clk 0:01:40]}  f4 {[%clk 0:01:04]} 26. Qc2 {[%clk 0:01:25]}  Rb8 {[%clk 0:01:01]} 27. Nd2 {[%clk 0:01:21]}  Rf8 {[%clk 0:00:59]} 28. N2e4 {[%clk 0:01:21]}  Bh3 {[%clk 0:00:57]} 29. f3 {[%clk 0:01:15]}  fxg3 {[%clk 0:00:53]} 30. hxg3 {[%clk 0:01:14]}  Ngf4 {[%clk 0:00:38]} 31. Bh1 {[%clk 0:01:10]}  Re6 {[%clk 0:00:21]} 32. Kh2 {[%clk 0:01:06]}  Rg6 {[%clk 0:00:21]} 33. a5 {[%clk 0:00:59]}  Be6 {[%clk 0:00:16]} 34. a6 {[%clk 0:00:57]}  Qe7 {[%clk 0:00:16]} 35. Rg1 {[%clk 0:00:19]}  Nxg3 {[%clk 0:00:15]} 36. Rxg3 {[%clk 0:00:19]}  Qh4+ {[%clk 0:00:14]} 37. Kg1 {[%clk 0:00:20]}  Rxg3+ {[%clk 0:00:14]} 38. Nxg3 {[%clk 0:00:20]}  Qxg3+ {[%clk 0:00:15]} 39. Bg2 {[%clk 0:00:20]}  Nh3+ {[%clk 0:00:06]} 40. Kf1 {[%clk 0:00:19]}  Rxf3+ {[%clk 0:00:06]} 41. Bxf3 {[%clk 0:00:20]}  Qxf3+ {[%clk 0:00:05]} 42. Ke1 {[%clk 0:00:20]}  Qe3+ {[%clk 0:00:04]} 43. Kf1 {[%clk 0:00:16]}  Qf3+ {[%clk 0:00:02]} 44. Ke1 {[%clk 0:00:16]}  Qe3+ {[%clk 0:00:02]} 45. Kf1 {[%clk 0:00:16]}  Qf3+ {[%clk 0:00:03]} 1/2-1/2


[Site "https://www.chess.com"]

[Event "Titled Tuesday Blitz June 6 Early 2023"]
[White "Jiganchine, Roman"]
[Black "Aloma Vidal, Robert"]
[WhiteFideId "2603667"]
[BlackFideId "2260409"]
[WhiteElo "2298"]
[BlackElo "2435"]
[Result "0-1"]
[Round "9"]
[TimeControl "180+2"]
[Date "2023.06.06"]
[WhiteClock "0:00:08"]
[BlackClock "0:00:39"]
[Board "125"]

1. e4 {[%clk 0:02:59]}  e5 {[%clk 0:02:54]} 2. Nf3 {[%clk 0:02:59]}  Nf6 {[%clk 0:02:55]} 3. Nc3 {[%clk 0:02:59]}  Nc6 {[%clk 0:02:54]} 4. Bb5 {[%clk 0:02:36]}  Nd4 {[%clk 0:02:54]} 5. O-O {[%clk 0:02:36]}  c6 {[%clk 0:02:54]} 6. Bc4 {[%clk 0:02:32]}  d6 {[%clk 0:02:49]} 7. h3 {[%clk 0:02:28]}  b5 {[%clk 0:02:46]} 8. Bd3 {[%clk 0:02:25]}  Be7 {[%clk 0:02:40]} 9. Nxd4 {[%clk 0:02:23]}  exd4 {[%clk 0:02:39]} 10. Ne2 {[%clk 0:02:23]}  Qb6 {[%clk 0:02:39]} 11. Ng3 {[%clk 0:02:20]}  c5 {[%clk 0:02:36]} 12. e5 {[%clk 0:02:09]}  dxe5 {[%clk 0:02:34]} 13. Re1 {[%clk 0:02:09]}  c4 {[%clk 0:02:31]} 14. Bf5 {[%clk 0:02:01]}  Qc7 {[%clk 0:02:18]} 15. a4 {[%clk 0:01:58]}  b4 {[%clk 0:02:17]} 16. d3 {[%clk 0:01:56]}  c3 {[%clk 0:02:14]} 17. bxc3 {[%clk 0:01:54]}  bxc3 {[%clk 0:02:13]} 18. Rb1 {[%clk 0:01:29]}  O-O {[%clk 0:02:11]} 19. Qf3 {[%clk 0:01:29]}  Rb8 {[%clk 0:01:59]} 20. Rb5 {[%clk 0:01:29]}  Bd6 {[%clk 0:01:50]} 21. Bg5 {[%clk 0:01:26]}  Rxb5 {[%clk 0:01:44]} 22. Bxf6 {[%clk 0:01:21]}  Rb6 {[%clk 0:01:44]} 23. Bxg7 {[%clk 0:01:03]}  Kxg7 {[%clk 0:01:42]} 24. Nh5+ {[%clk 0:01:03]}  Kh8 {[%clk 0:01:43]} 25. Bxc8 {[%clk 0:01:02]}  Qe7 {[%clk 0:01:25]} 26. Bf5 {[%clk 0:00:57]}  Qg5 {[%clk 0:01:24]} 27. Re4 {[%clk 0:00:50]}  Rb1+ {[%clk 0:01:22]} 28. Kh2 {[%clk 0:00:49]}  Re1 {[%clk 0:01:19]} 29. Ng3 {[%clk 0:00:38]}  Rxe4 {[%clk 0:01:09]} 30. Nxe4 {[%clk 0:00:38]}  Qh6 {[%clk 0:01:09]} 31. g3 {[%clk 0:00:37]}  Be7 {[%clk 0:01:06]} 32. a5 {[%clk 0:00:32]}  Bf6 {[%clk 0:00:53]} 33. Bg4 {[%clk 0:00:31]}  Bg7 {[%clk 0:00:53]} 34. Qf5 {[%clk 0:00:29]}  Qg6 {[%clk 0:00:49]} 35. Qd7 {[%clk 0:00:28]}  f5 {[%clk 0:00:49]} 36. Bxf5 {[%clk 0:00:11]}  Qxf5 {[%clk 0:00:48]} 37. Qxa7 {[%clk 0:00:08]}  Qf7 {[%clk 0:00:45]} 38. Qb6 {[%clk 0:00:08]}  Qg6 {[%clk 0:00:40]} 39. a6 {[%clk 0:00:08]}  Qxb6 {[%clk 0:00:39]} 0-1


[Site "https://www.chess.com"]

[Event "Titled Tuesday Blitz June 6 Early 2023"]
[White "Sarkar, Justin"]
[Black "Begunov, Konstantin"]
[WhiteFideId "2010011"]
[BlackFideId "4118510"]
[WhiteElo "2151"]
[BlackElo "1993"]
[Result "0-1"]
[Round "9"]
[TimeControl "180+2"]
[Date "2023.06.06"]
[WhiteClock "0:00:02"]
[BlackClock "0:01:52"]
[Board "126"]

1. d4 {[%clk 0:02:20]}  d5 {[%clk 0:02:59]} 2. c4 {[%clk 0:02:19]}  c6 {[%clk 0:03:00]} 3. Nf3 {[%clk 0:02:17]}  Nf6 {[%clk 0:03:00]} 4. Nc3 {[%clk 0:02:16]}  dxc4 {[%clk 0:03:00]} 5. a4 {[%clk 0:02:07]}  Bg4 {[%clk 0:02:58]} 6. Ne5 {[%clk 0:01:54]}  Bh5 {[%clk 0:02:58]} 7. g3 {[%clk 0:01:48]}  e6 {[%clk 0:02:57]} 8. Bg2 {[%clk 0:01:46]}  Bb4 {[%clk 0:02:57]} 9. O-O {[%clk 0:01:43]}  Nd5 {[%clk 0:02:57]} 10. Qc2 {[%clk 0:01:26]}  a5 {[%clk 0:02:50]} 11. Nxc4 {[%clk 0:01:23]}  Nb6 {[%clk 0:02:48]} 12. Nxb6 {[%clk 0:01:18]}  Qxb6 {[%clk 0:02:49]} 13. Rd1 {[%clk 0:01:08]}  O-O {[%clk 0:02:45]} 14. Be3 {[%clk 0:00:56]}  Qa6 {[%clk 0:02:45]} 15. Bf4 {[%clk 0:00:42]}  Nd7 {[%clk 0:02:36]} 16. h3 {[%clk 0:00:20]}  Nf6 {[%clk 0:02:34]} 17. g4 {[%clk 0:00:15]}  Bg6 {[%clk 0:02:35]} 18. Qb3 {[%clk 0:00:15]}  Nd5 {[%clk 0:02:32]} 19. Nxd5 {[%clk 0:00:08]}  exd5 {[%clk 0:02:27]} 20. e3 {[%clk 0:00:07]}  f5 {[%clk 0:02:16]} 21. g5 {[%clk 0:00:05]}  Qb6 {[%clk 0:02:11]} 22. Bf1 {[%clk 0:00:05]}  Bh5 {[%clk 0:02:06]} 23. Rdc1 {[%clk 0:00:04]}  Bf3 {[%clk 0:02:04]} 24. Bg2 {[%clk 0:00:02]}  Bxg2 {[%clk 0:02:04]} 25. Kxg2 {[%clk 0:00:03]}  Rf7 {[%clk 0:02:00]} 26. Qd3 {[%clk 0:00:03]}  Qd8 {[%clk 0:01:59]} 27. Rh1 {[%clk 0:00:02]}  Bd6 {[%clk 0:01:54]} 28. h4 {[%clk 0:00:02]}  Bxf4 {[%clk 0:01:53]} 29. exf4 {[%clk 0:00:02]}  Qd6 {[%clk 0:01:52]} 0-1


[Site "https://www.chess.com"]

[Event "Titled Tuesday Blitz June 6 Early 2023"]
[White "Kriti Mayur Patel"]
[Black "Mejia, Cherry Ann"]
[WhiteFideId "35061780"]
[BlackFideId "5206880"]
[WhiteElo "1306"]
[BlackElo "2007"]
[Result "0-1"]
[Round "9"]
[TimeControl "180+2"]
[Date "2023.06.06"]
[WhiteClock "0:00:12"]
[BlackClock "0:00:17"]
[Board "129"]

1. e4 {[%clk 0:03:00]}  c5 {[%clk 0:02:56]} 2. d4 {[%clk 0:02:59]}  cxd4 {[%clk 0:02:54]} 3. c3 {[%clk 0:03:00]}  Nf6 {[%clk 0:02:55]} 4. e5 {[%clk 0:03:00]}  Nd5 {[%clk 0:02:55]} 5. Bc4 {[%clk 0:03:00]}  Nb6 {[%clk 0:02:54]} 6. Bb3 {[%clk 0:03:01]}  e6 {[%clk 0:02:53]} 7. Nf3 {[%clk 0:02:59]}  d6 {[%clk 0:02:53]} 8. exd6 {[%clk 0:02:55]}  Bxd6 {[%clk 0:02:52]} 9. O-O {[%clk 0:02:55]}  O-O {[%clk 0:02:52]} 10. cxd4 {[%clk 0:02:53]}  Nc6 {[%clk 0:02:52]} 11. Nc3 {[%clk 0:02:53]}  Nb4 {[%clk 0:02:52]} 12. Nb5 {[%clk 0:02:49]}  Bb8 {[%clk 0:02:49]} 13. Bg5 {[%clk 0:02:47]}  f6 {[%clk 0:02:47]} 14. Be3 {[%clk 0:02:37]}  a6 {[%clk 0:02:44]} 15. Nc3 {[%clk 0:02:34]}  N4d5 {[%clk 0:02:44]} 16. Rc1 {[%clk 0:02:32]}  Bd7 {[%clk 0:02:38]} 17. Qe2 {[%clk 0:02:20]}  Bc6 {[%clk 0:02:36]} 18. Rfd1 {[%clk 0:02:10]}  Nxc3 {[%clk 0:02:30]} 19. Bxe6+ {[%clk 0:02:04]}  Kh8 {[%clk 0:02:29]} 20. bxc3 {[%clk 0:01:37]}  Bxf3 {[%clk 0:02:16]} 21. Qxf3 {[%clk 0:01:36]}  Qd6 {[%clk 0:02:17]} 22. Qh3 {[%clk 0:01:35]}  f5 {[%clk 0:02:05]} 23. d5 {[%clk 0:01:33]}  Nc4 {[%clk 0:01:57]} 24. Bd4 {[%clk 0:01:20]}  Qf4 {[%clk 0:01:30]} 25. g3 {[%clk 0:01:07]}  Qg5 {[%clk 0:01:27]} 26. Bc5 {[%clk 0:00:53]}  Bd6 {[%clk 0:01:23]} 27. Bxd6 {[%clk 0:00:45]}  Nxd6 {[%clk 0:01:23]} 28. c4 {[%clk 0:00:45]}  b6 {[%clk 0:01:16]} 29. Rb1 {[%clk 0:00:44]}  Nxc4 {[%clk 0:01:14]} 30. d6 {[%clk 0:00:43]}  Nd2 {[%clk 0:01:11]} 31. Rxb6 {[%clk 0:00:40]}  Nf3+ {[%clk 0:00:47]} 32. Kg2 {[%clk 0:00:37]}  f4 {[%clk 0:00:43]} 33. Kxf3 {[%clk 0:00:21]}  fxg3+ {[%clk 0:00:43]} 34. Kg2 {[%clk 0:00:21]}  Rxf2+ {[%clk 0:00:34]} 35. Kg1 {[%clk 0:00:17]}  Rxh2 {[%clk 0:00:28]} 36. Qf5 {[%clk 0:00:15]}  Qe3+ {[%clk 0:00:27]} 37. Kf1 {[%clk 0:00:11]}  Rf2+ {[%clk 0:00:27]} 38. Kg1 {[%clk 0:00:11]}  Rxf5+ {[%clk 0:00:27]} 39. Kg2 {[%clk 0:00:11]}  Qf2+ {[%clk 0:00:26]} 40. Kh3 {[%clk 0:00:12]}  Rh5+ {[%clk 0:00:20]} 41. Kg4 {[%clk 0:00:12]}  Qe2+ {[%clk 0:00:20]} 42. Kxg3 {[%clk 0:00:12]}  Qxe6 {[%clk 0:00:19]} 43. d7 {[%clk 0:00:12]}  Rg5+ {[%clk 0:00:18]} 44. Kh4 {[%clk 0:00:12]}  Qg4# {[%clk 0:00:17]} 0-1


[Site "https://www.chess.com"]

[Event "Titled Tuesday Blitz June 6 Early 2023"]
[White "Antonova, Nadezhda"]
[Black "Chuemsakul, Sarocha"]
[WhiteFideId "14700182"]
[BlackFideId "6203710"]
[WhiteElo "1795"]
[BlackElo "1686"]
[Result "1-0"]
[Round "9"]
[TimeControl "180+2"]
[Date "2023.06.06"]
[WhiteClock "0:00:56"]
[BlackClock "0:00:10"]
[Board "131"]

1. Nf3 {[%clk 0:02:59]}  Nf6 {[%clk 0:02:59]} 2. b3 {[%clk 0:03:00]}  g6 {[%clk 0:03:00]} 3. Bb2 {[%clk 0:03:01]}  Bg7 {[%clk 0:03:00]} 4. g3 {[%clk 0:03:01]}  O-O {[%clk 0:03:01]} 5. Bg2 {[%clk 0:03:01]}  d6 {[%clk 0:03:01]} 6. d4 {[%clk 0:03:01]}  Nbd7 {[%clk 0:02:58]} 7. O-O {[%clk 0:03:01]}  Rb8 {[%clk 0:02:58]} 8. Nbd2 {[%clk 0:02:59]}  b5 {[%clk 0:02:58]} 9. e4 {[%clk 0:02:59]}  c5 {[%clk 0:02:53]} 10. Re1 {[%clk 0:02:58]}  Ne8 {[%clk 0:02:45]} 11. Rb1 {[%clk 0:02:54]}  a5 {[%clk 0:02:44]} 12. c4 {[%clk 0:02:50]}  b4 {[%clk 0:02:25]} 13. e5 {[%clk 0:02:43]}  Bb7 {[%clk 0:02:04]} 14. d5 {[%clk 0:02:35]}  dxe5 {[%clk 0:01:50]} 15. Nxe5 {[%clk 0:02:34]}  Nxe5 {[%clk 0:01:49]} 16. Bxe5 {[%clk 0:02:33]}  Bxe5 {[%clk 0:01:46]} 17. Rxe5 {[%clk 0:02:34]}  Nd6 {[%clk 0:01:45]} 18. Qe2 {[%clk 0:02:27]}  Re8 {[%clk 0:01:45]} 19. Re1 {[%clk 0:02:26]}  Nf5 {[%clk 0:01:41]} 20. Nf3 {[%clk 0:02:10]}  a4 {[%clk 0:01:22]} 21. Qd3 {[%clk 0:01:57]}  axb3 {[%clk 0:01:21]} 22. axb3 {[%clk 0:01:58]}  Bc8 {[%clk 0:01:16]} 23. d6 {[%clk 0:01:31]}  Qxd6 {[%clk 0:00:51]} 24. Qxd6 {[%clk 0:01:29]}  Nxd6 {[%clk 0:00:52]} 25. Rxc5 {[%clk 0:01:28]}  Bf5 {[%clk 0:00:44]} 26. Rc7 {[%clk 0:01:21]}  Bc2 {[%clk 0:00:42]} 27. Nd4 {[%clk 0:01:18]}  Bd3 {[%clk 0:00:31]} 28. Re3 {[%clk 0:01:09]}  Bb1 {[%clk 0:00:16]} 29. Rexe7 {[%clk 0:01:00]}  Rxe7 {[%clk 0:00:17]} 30. Rxe7 {[%clk 0:01:00]}  Rc8 {[%clk 0:00:10]} 31. Bd5 {[%clk 0:00:56]} 1-0


[Site "https://www.chess.com"]